bitfinex/quotes_SOLUSD_20250318
["timestamp","ask_amount","ask_price","bid_price","bid_amount"]
[1742340650127,13.50224575,125.66,125.65,0.063]
[1742340651765,68.88367808,125.66,125.65,0.063]
[1742340652254,95.77555008,125.66,125.62,0.063]
[1742340652547,13.47224575,125.63,125.62,0.063]
[1742340653266,13.47224575,125.61,125.59,0.063]
[1742340653454,13.47224575,125.6,125.59,0.063]
[1742340654256,13.47224575,125.6,125.59,0.20516157]
[1742340654430,13.47224575,125.61,125.59,0.34732314]
[1742340654760,13.47224575,125.62,125.59,0.34732314]
[1742340655760,13.47224575,125.62,125.61,0.14216157]
[1742340657248,21.03142739,125.62,125.61,0.14216157]
[1742340657766,21.03142739,125.62,125.61,8.10326157]
[1742340658655,21.03142739,125.63,125.61,8.10326157]
[1742340659737,21.03142739,125.62,125.61,8.10326157]
[1742340661465,21.03142739,125.64,125.61,29.64146157]
[1742340662059,21.03142739,125.65,125.62,0.14216157]
[1742340662373,21.03142739,125.65,125.63,0.14216157]
[1742340662566,21.06142739,125.66,125.63,0.14216157]
[1742340662970,21.06142739,125.66,125.65,0.14216157]
[1742340663145,0.03,125.66,125.65,0.14216157]
[1742340663351,21.06142739,125.66,125.65,0.14216157]
[1742340664849,0.0001,125.66,125.65,0.14216157]
[1742340665344,0.0001,125.66,125.65,8.24292314]
[1742340665760,0.0001,125.66,125.65,9.80532314]
[1742340666444,2.739e-05,125.68,125.66,0.14216157]
[1742340666959,21.03142739,125.69,125.66,0.14216157]
[1742340667158,21.03142739,125.68,125.66,0.28432314]
[1742340667358,21.03142739,125.68,125.67,7.9573]
[1742340667949,21.03142739,125.69,125.68,0.14216157]
[1742340669458,21.03142739,125.69,125.68,7.9567]
[1742340670664,21.03142739,125.69,125.67,27.8506]
[1742340670842,21.03142739,125.68,125.67,27.8506]
[1742340671046,21.03142739,125.68,125.67,7.9573]
[1742340671738,21.03142739,125.68,125.66,7.9579]
[1742340671942,21.03142739,125.67,125.66,7.9579]
[1742340672754,21.03142739,125.67,125.63,27.859]
[1742340674064,21.03142739,125.64,125.63,27.859]
[1742340674900,21.03142739,125.64,125.61,27.9269]
[1742340675064,21.03142739,125.62,125.61,28.06906157]
[1742340675371,2.739e-05,125.62,125.61,28.06906157]
[1742340676157,2.739e-05,125.62,125.61,8.0241]
[1742340677050,2.739e-05,125.62,125.61,0.063]
[1742340678758,1.49279938,125.62,125.61,0.063]
[1742340682693,1.77712252,125.62,125.61,0.063]
[1742340683487,2.739e-05,125.62,125.61,0.063]
[1742340687070,13.46753275,125.62,125.61,0.063]
[1742340687975,13.75185589,125.62,125.61,0.063]
[1742340688285,13.46753275,125.6,125.59,0.063]
[1742340688478,20.70753275,125.6,125.59,0.063]
[1742340689385,20.99185589,125.6,125.59,0.063]
[1742340689789,22.48521943,125.6,125.59,0.063]
[1742340689971,22.48521943,125.6,125.55,7.9649]
[1742340689972,0.28432314,125.59,125.55,7.9649]
[1742340690173,13.46753275,125.56,125.55,7.9649]
[1742340691067,21.05200119,125.56,125.55,27.8772]
[1742340691997,21.05200119,125.56,125.53,27.9447]
[1742340692164,21.05200119,125.55,125.53,27.9447]
[1742340692569,21.05200119,125.56,125.53,27.9447]
[1742340692769,0.28432314,125.59,125.53,27.9447]
[1742340693078,21.05200119,125.56,125.53,27.9447]
[1742340694204,21.05200119,125.55,125.53,27.9447]
[1742340694665,21.05200119,125.56,125.53,27.9447]
[1742340696182,21.05200119,125.55,125.53,27.9447]
[1742340697078,21.05200119,125.56,125.53,27.9447]
[1742340697425,21.05200119,125.55,125.53,27.9447]
[1742340697765,21.05200119,125.54,125.53,8.0292]
[1742340698900,21.05200119,125.54,125.53,0.063]
[1742340700776,8.75382815,125.56,125.53,0.063]
[1742340700976,21.05200119,125.55,125.53,27.9447]
[1742340701198,21.05200119,125.56,125.53,27.9447]
[1742340701376,21.05200119,125.56,125.53,29.5994]
[1742340702091,21.05200119,125.58,125.54,6.17426157]
[1742340702299,21.05200119,125.57,125.54,6.17426157]
[1742340702690,21.05200119,125.56,125.54,6.17426157]
[1742340703003,21.05200119,125.56,125.55,7.9649]
[1742340705201,21.05200119,125.56,125.54,7.9655]
[1742340705403,21.05200119,125.55,125.54,7.9655]
[1742340708798,18.64964886,125.62,125.55,0.14216157]
[1742340709001,21.05200119,125.6,125.57,0.14216157]
[1742340709192,21.05200119,125.61,125.57,0.14216157]
[1742340709395,21.05200119,125.6,125.58,7.963]
[1742340709703,21.08200119,125.6,125.58,7.963]
[1742340710606,21.05200119,125.59,125.58,7.963]
[1742340711517,21.05200119,125.59,125.57,19.9087]
[1742340711886,21.05200119,125.58,125.57,19.9087]
[1742340712088,21.05200119,125.59,125.57,19.9087]
[1742340714710,21.05200119,125.58,125.57,19.9087]
[1742340716219,21.05200119,125.58,125.56,7.9643]
[1742340716394,0.03,125.6,125.56,7.9643]
[1742340716395,21.05200119,125.57,125.56,7.9643]
[1742340717910,21.05200119,125.57,125.55,19.9122]
[1742340720815,1.19e-06,125.57,125.55,19.9122]
[1742340720995,21.05200119,125.59,125.56,0.14216157]
[1742340721190,21.08200119,125.59,125.56,0.14216157]
[1742340722407,21.05200119,125.58,125.56,0.14216157]
[1742340722600,21.08200119,125.59,125.57,7.9636]
[1742340725116,13.46897658,125.58,125.57,7.9636]
[1742340725515,13.49897658,125.59,125.57,7.9636]
[1742340728830,0.03,125.6,125.58,0.14216157]
[1742340729124,0.03,125.6,125.59,7.9624]
[1742340729496,13.46897658,125.62,125.59,28.01056157]
[1742340729698,13.46897658,125.63,125.59,28.01056157]
[1742340730012,13.46897658,125.6,125.59,27.8684]
[1742340731326,13.46897658,125.6,125.59,19.906]
[1742340732727,13.46897658,125.6,125.58,7.963]
[1742340732908,13.46897658,125.59,125.58,7.963]
[1742340733726,13.46897658,125.59,125.57,27.8725]
[1742340734223,0.03,125.6,125.58,0.14216157]
[1742340734414,13.49897658,125.6,125.58,0.14216157]
[1742340734946,0.03,125.6,125.58,0.14216157]
[1742340735313,13.49897658,125.6,125.58,0.14216157]
[1742340735710,0.03,125.6,125.59,7.9624]
[1742340737222,13.49897658,125.6,125.59,7.9624]
[1742340737411,0.03,125.6,125.59,7.9624]
[1742340741141,13.49897658,125.6,125.59,7.9624]
[1742340742454,13.49897658,125.6,125.57,27.8725]
[1742340742614,13.46897658,125.59,125.57,27.8725]
[1742340742823,13.49897658,125.6,125.57,27.8725]
[1742340744233,13.46897658,125.59,125.57,27.8725]
[1742340745016,13.49897658,125.6,125.57,27.8725]
[1742340745430,0.03,125.6,125.58,0.14216157]
[1742340747426,0.03,125.6,125.59,27.9624]
[1742340748125,0.03,125.6,125.59,28.10456157]
[1742340748334,0.03,125.6,125.59,28.24672314]
[1742340749731,13.49897658,125.6,125.59,28.10456157]
[1742340749963,13.49897658,125.6,125.59,27.9624]
[1742340752337,13.49897658,125.6,125.58,7.963]
[1742340752522,13.46897658,125.59,125.58,7.963]
[1742340752724,13.46897658,125.59,125.57,7.9636]
[1742340753047,13.46897658,125.58,125.56,8.027]
[1742340753338,13.46897658,125.57,125.56,0.063]
[1742340756738,20.58897658,125.57,125.56,0.063]
[1742340757821,20.87329972,125.57,125.56,0.063]
[1742340758036,0.28432314,125.56,125.55,0.063]
[1742340758236,0.28432314,125.56,125.54,0.063]
[1742340758237,15.24721189,125.56,125.54,0.063]
[1742340758423,13.75329972,125.55,125.54,0.063]
[1742340758633,13.75329972,125.55,125.53,0.063]
[1742340758833,14.96296586,125.54,125.53,0.063]
[1742340759226,22.84987508,125.54,125.53,0.063]
[1742340762843,49.46502394,125.54,125.52,0.063]
[1742340763148,46.82121152,125.53,125.52,0.063]
[1742340764037,42.42744846,125.52,125.51,0.03]
[1742340764248,43.92179768,125.52,125.51,0.03]
[1742340765048,70.53824654,125.52,125.51,0.03]
[1742340765955,0.28432314,125.5,125.49,0.03]
[1742340766129,22.85045378,125.5,125.49,0.03]
[1742340766331,49.46820264,125.5,125.49,0.03]
[1742340768652,41.50010264,125.5,125.49,0.03]
[1742340768955,22.85045378,125.5,125.49,0.03]
[1742340770649,21.07156266,125.5,125.49,0.03]
[1742340770848,28.19156266,125.51,125.49,0.03]
[1742340771447,21.07156266,125.5,125.49,0.03]
[1742340779240,13.48879321,125.5,125.49,0.03]
[1742340784164,32.42276521,125.5,125.48,0.03]
[1742340784362,15.26783993,125.49,125.48,0.03]
[1742340784545,13.48879321,125.49,125.48,0.03]
[1742340789746,7.1,125.51,125.48,0.03]
[1742340789963,13.48879321,125.49,125.48,0.03]
[1742340790356,7.1,125.51,125.48,0.03]
[1742340790552,13.48879321,125.49,125.48,0.03]
[1742340792770,14.98309087,125.49,125.48,0.03]
[1742340793149,13.48879321,125.49,125.48,0.03]
[1742340794367,21.45749321,125.49,125.48,0.03]
[1742340795572,40.39146521,125.49,125.48,0.03]
[1742340795954,0.28432314,125.48,125.46,0.063]
[1742340796154,14.9836092,125.47,125.46,0.063]
[1742340796565,22.36793234,125.47,125.46,0.063]
[1742340798670,22.0836092,125.47,125.46,0.063]
[1742340799574,20.58879321,125.47,125.46,0.063]
[1742340799754,7.1,125.47,125.46,0.063]
[1742340799966,7.1,125.49,125.46,0.063]
[1742340800272,13.48879321,125.47,125.46,0.063]
[1742340800573,13.48879321,125.48,125.46,0.063]
[1742340802265,7.1,125.49,125.46,0.063]
[1742340802266,13.48879321,125.47,125.46,0.063]
[1742340804276,0.063,125.49,125.46,1.72156157]
[1742340805977,0.063,125.49,125.47,0.14216157]
[1742340806369,0.063,125.49,125.48,8.11146157]
[1742340807379,0.0001,125.49,125.48,27.93541635]
[1742340807956,0.063,125.52,125.49,1.5164]
[1742340808169,0.063,125.52,125.51,20.14216157]
[1742340808383,0.063,125.52,125.51,28.10956157]
[1742340808579,0.0001,125.52,125.51,28.25172314]
[1742340809386,0.0001,125.52,125.51,41.74051635]
[1742340809569,0.0001,125.52,125.51,60.67448835]
[1742340810161,0.0001,125.52,125.51,66.86748835]
[1742340811379,0.0001,125.52,125.51,34.44472314]
[1742340820897,0.0001,125.52,125.51,68.06220519]
[1742340821894,0.0001,125.52,125.51,68.76220519]
[1742340822075,13.48879321,125.58,125.53,0.14216157]
[1742340822275,13.48879321,125.59,125.55,0.14216157]
[1742340822913,13.48879321,125.59,125.56,7.9643]
[1742340823400,0.03,125.6,125.57,0.28432314]
[1742340823401,13.51879321,125.6,125.57,0.28432314]
[1742340824281,13.48879321,125.59,125.57,0.28432314]
[1742340824889,0.03,125.6,125.56,29.3772]
[1742340824890,13.48879321,125.58,125.56,7.9643]
[1742340825207,13.48879321,125.57,125.56,8.10646157]
[1742340825502,13.48879321,125.57,125.56,7.9643]
[1742340825882,13.48879321,125.57,125.55,8.10706157]
[1742340826190,13.48879321,125.56,125.55,8.10706157]
[1742340827084,13.48879321,125.56,125.53,7.9662]
[1742340827296,13.48879321,125.54,125.53,8.10836157]
[1742340827904,13.48879321,125.54,125.53,7.9662]
[1742340829113,13.48879321,125.54,125.51,26.54032314]
[1742340829114,21.06079459,125.54,125.52,8.10896157]
[1742340831814,22.5543142,125.58,125.52,28.02606157]
[1742340831998,21.06079459,125.54,125.52,28.02606157]
[1742340832200,21.06079459,125.55,125.52,28.02606157]
[1742340833212,21.06079459,125.54,125.52,28.02606157]
[1742340835124,21.06079459,125.58,125.52,28.02606157]
[1742340835297,21.06079459,125.55,125.52,28.02606157]
[1742340836215,21.06079459,125.54,125.52,28.02606157]
[1742340837917,21.06079459,125.55,125.52,28.02606157]
[1742340838617,21.06079459,125.55,125.52,28.08906157]
[1742340841541,21.06079459,125.54,125.52,28.08906157]
[1742340842535,21.06079459,125.55,125.52,28.08906157]
[1742340842905,21.06079459,125.54,125.52,28.08906157]
[1742340845138,21.06079459,125.55,125.52,28.08906157]
[1742340845339,0.03,125.57,125.52,28.08906157]
[1742340845546,21.06079459,125.56,125.52,28.08906157]
[1742340846120,21.06079459,125.55,125.52,28.08906157]
[1742340846650,21.06079459,125.56,125.52,28.08906157]
[1742340846847,21.06079459,125.56,125.53,0.14216157]
[1742340847057,21.06079459,125.56,125.54,7.9655]
[1742340847750,21.06079459,125.56,125.55,0.14216157]
[1742340848453,21.09079459,125.57,125.55,0.14216157]
[1742340849149,13.50225253,125.57,125.56,7.9643]
[1742340850826,7.13,125.6,125.56,7.9643]
[1742340850827,13.50225253,125.6,125.57,0.14216157]
[1742340851153,0.03,125.6,125.57,0.28432314]
[1742340851856,13.50225253,125.6,125.57,0.28432314]
[1742340852850,13.50225253,125.6,125.59,0.14216157]
[1742340853238,13.50225253,125.6,125.58,7.963]
[1742340853434,13.47225253,125.59,125.58,7.963]
[1742340854627,0.03,125.6,125.59,0.14216157]
[1742340854827,13.50225253,125.6,125.59,8.10456157]
[1742340857221,0.03,125.6,125.59,8.10456157]
[1742340857427,13.50225253,125.6,125.59,8.10456157]
[1742340858437,13.50225253,125.6,125.59,0.14216157]
[1742340858745,13.50225253,125.6,125.55,7.9649]
[1742340858937,13.47225253,125.56,125.55,8.10706157]
[1742340861852,7.11,125.6,125.55,8.10706157]
[1742340862152,13.47225253,125.57,125.56,0.14216157]
[1742340863949,13.47225253,125.57,125.56,8.10646157]
[1742340864528,13.47225253,125.59,125.57,0.14216157]
[1742340864843,0.03,125.6,125.57,0.14216157]
[1742340864844,13.50225253,125.6,125.57,0.14216157]
[1742340865748,13.47225253,125.59,125.57,0.14216157]
[1742340866349,13.47225253,125.59,125.58,7.963]
[1742340868433,0.03,125.6,125.59,0.14216157]
[1742340868636,13.50225253,125.6,125.59,0.14216157]
[1742340870445,13.50225253,125.6,125.59,7.9624]
[1742340870647,13.50225253,125.6,125.59,8.10456157]
[1742340871143,13.50225253,125.6,125.57,7.9636]
[1742340871448,13.47225253,125.58,125.57,8.10576157]
[1742340871656,13.47225253,125.58,125.57,7.9636]
[1742340872751,13.47225253,125.58,125.56,0.063]
[1742340873055,9.48495125,125.6,125.58,20.0]
[1742340873431,9.48495125,125.6,125.56,0.063]
[1742340873934,13.47225253,125.57,125.56,0.063]
[1742340875754,13.47225253,125.59,125.58,20.0]
[1742340877166,13.47225253,125.59,125.58,27.963]
[1742340878561,13.47225253,125.59,125.58,28.10516157]
[1742340878733,0.03,125.6,125.59,0.14216157]
[1742340878734,13.50225253,125.6,125.59,0.14216157]
[1742340880854,13.50225253,125.6,125.59,28.10456157]
[1742340881061,13.50225253,125.6,125.59,27.9624]
[1742340881264,13.50225253,125.6,125.59,20.0]
[1742340881468,13.50225253,125.6,125.58,20.0]
[1742340881652,13.47225253,125.59,125.58,20.0]
[1742340881851,13.47225253,125.59,125.56,8.0267]
[1742340882036,13.47225253,125.57,125.56,8.0267]
[1742340882648,13.47225253,125.57,125.56,0.063]
[1742340887071,13.47225253,125.57,125.56,20.063]
[1742340889063,13.47225253,125.57,125.56,0.063]
[1742340889265,14.96586482,125.57,125.56,0.063]
[1742340890567,13.47225253,125.57,125.56,8.0273]
[1742340893081,13.47225253,125.57,125.56,20.063]
[1742340894669,13.47225253,125.57,125.56,28.0273]
[1742340896847,13.47225253,125.57,125.56,20.063]
[1742340899281,14.96585137,125.57,125.56,20.063]
[1742340900675,14.99585137,125.57,125.56,20.063]
[1742340900847,14.99585137,125.57,125.56,0.063]
[1742340902551,13.50225253,125.57,125.56,8.0273]
[1742340902972,13.50225253,125.57,125.56,0.063]
[1742340905157,0.03,125.57,125.56,0.063]
[1742340905358,13.50225253,125.57,125.56,0.063]
[1742340905561,32.43622453,125.57,125.56,0.063]
[1742340906377,0.28432314,125.56,125.54,20.0]
[1742340906564,13.47225253,125.55,125.54,20.0]
[1742340907595,20.49225253,125.55,125.54,20.0]
[1742340907758,20.49225253,125.55,125.53,7.9659]
[1742340908081,13.47225253,125.56,125.55,20.0]
[1742340908671,13.47225253,125.56,125.55,27.9649]
[1742340909263,13.47225253,125.56,125.53,7.9662]
[1742340909466,1.52351616,125.57,125.53,7.9662]
[1742340909467,13.47225253,125.54,125.53,7.9662]
[1742340909683,13.47225253,125.54,125.52,8.0295]
[1742340912083,13.47225253,125.53,125.52,19.9801]
[1742340912455,13.47225253,125.53,125.52,0.063]
[1742340913678,13.75657567,125.53,125.52,0.063]
[1742340914262,13.47225253,125.53,125.52,0.063]
[1742340914463,13.75657567,125.53,125.52,0.063]
[1742340916263,32.40622453,125.53,125.52,0.063]
[1742340916579,67.64558579,125.52,125.48,8.0323]
[1742340916779,55.38337633,125.51,125.5,20.0]
[1742340916982,55.66769947,125.51,125.5,20.0]
[1742340917772,69.139952,125.51,125.48,8.0322]
[1742340917971,13.47225253,125.49,125.48,8.0322]
[1742340918986,13.47225253,125.49,125.48,20.063]
[1742340919174,15.25107404,125.49,125.48,0.063]
[1742340919484,15.25107404,125.49,125.46,8.0336]
[1742340919485,0.28432314,125.48,125.46,8.0336]
[1742340919690,14.96704509,125.47,125.46,0.063]
[1742340920064,13.47225253,125.47,125.46,0.063]
[1742340920965,13.47225253,125.47,125.46,20.063]
[1742340921991,13.47225253,125.48,125.47,20.0]
[1742340923096,21.07774073,125.48,125.47,47.895]
[1742340925071,21.07774073,125.49,125.47,47.925]
[1742340925272,28.07774073,125.5,125.47,47.925]
[1742340927698,21.07774073,125.49,125.47,47.925]
[1742340930202,28.07774073,125.5,125.47,47.925]
[1742340931098,21.07774073,125.49,125.47,47.925]
[1742340933501,28.07774073,125.5,125.47,47.925]
[1742340933681,21.07774073,125.49,125.47,47.925]
[1742340936401,28.07774073,125.5,125.47,47.925]
[1742340936801,21.07774073,125.5,125.47,47.925]
[1742340937000,0.063,125.5,125.47,47.925]
[1742340937185,0.063,125.5,125.48,0.14216157]
[1742340937385,21.14074073,125.53,125.51,20.0]
[1742340937593,21.14074073,125.53,125.52,20.0]
[1742340938596,21.14074073,125.53,125.52,27.9668]
[1742340940709,21.14074073,125.53,125.51,7.9672]
[1742340941002,21.07774073,125.52,125.51,27.9672]
[1742340942706,21.14074073,125.53,125.51,27.9672]
[1742340943098,13.54379244,125.53,125.51,27.9672]
[1742340945310,0.063,125.53,125.51,27.9672]
[1742340945612,13.54379244,125.53,125.51,27.9672]
[1742340949819,13.48079244,125.52,125.51,27.9672]
[1742340950492,13.48079244,125.52,125.51,20.0]
[1742340950914,13.48079244,125.52,125.5,7.9679]
[1742340951127,13.48079244,125.51,125.5,7.9679]
[1742340951929,13.48079244,125.51,125.49,7.9687]
[1742340952909,13.48079244,125.5,125.49,7.9687]
[1742340954000,13.48079244,125.5,125.48,7.9693]
[1742340954204,13.48079244,125.49,125.48,7.9693]
[1742340955625,13.48079244,125.5,125.48,7.9693]
[1742340959230,13.48079244,125.51,125.5,20.0]
[1742340960929,13.48079244,125.51,125.5,20.03]
[1742340961126,13.48079244,125.51,125.5,0.03]
[1742340962929,13.76511558,125.51,125.5,0.03]
[1742340963111,67.68828534,125.51,125.5,0.03]
[1742340963514,94.3053342,125.51,125.5,0.03]
[1742340964427,94.3053342,125.51,125.47,0.03]
[1742340964626,13.48079244,125.48,125.47,0.03]
[1742340964828,20.42079244,125.48,125.47,0.03]
[1742340968712,20.70511558,125.48,125.47,0.03]
[1742340968908,20.42079244,125.48,125.46,0.063]
[1742340969113,13.48079244,125.47,125.46,0.063]
[1742340976446,81.6,125.5,125.46,0.063]
[1742340976627,13.48079244,125.49,125.46,1.7152]
[1742340976947,13.48079244,125.48,125.47,7.97]
[1742340977524,13.48079244,125.48,125.46,1.7152]
[1742340977525,13.48079244,125.48,125.46,28.0334]
[1742340977745,21.91534299,125.47,125.46,0.063]
[1742340980024,20.42079244,125.47,125.46,0.063]
[1742340982743,13.48079244,125.48,125.46,0.063]
[1742340984034,13.48079244,125.47,125.46,0.063]
[1742340984663,13.54379244,125.47,125.46,0.063]
[1742340985354,0.063,125.47,125.46,0.063]
[1742340993368,13.54379244,125.47,125.46,0.063]
[1742340997559,15.03861349,125.47,125.46,0.063]
[1742341001958,177.46575525,125.47,125.42,0.9101801]
[1742341002162,13.48079244,125.43,125.42,0.9101801]
[1742341004775,13.48079244,125.43,125.42,8.8833801]
[1742341009166,13.48079244,125.43,125.42,8.9133801]
[1742341011479,13.48079244,125.44,125.42,28.8463801]
[1742341011650,13.48079244,125.43,125.42,28.8463801]
[1742341014581,13.48079244,125.43,125.42,8.9133801]
[1742341021478,13.54379244,125.43,125.42,8.9133801]
[1742341022675,0.063,125.43,125.42,9.05554167]
[1742341022877,0.063,125.43,125.42,0.9401801]
[1742341022878,20.48379244,125.43,125.42,0.9401801]
[1742341024162,20.48379244,125.43,125.42,1.06397675]
[1742341024364,20.48379244,125.43,125.42,9.03717675]
[1742341025684,20.48379244,125.43,125.42,1.06397675]
[1742341026781,20.48379244,125.43,125.41,0.04300001]
[1742341027079,13.48079244,125.42,125.41,0.04300001]
[1742341027272,115.51008515,125.42,125.39,0.063]
[1742341027472,13.48079244,125.4,125.39,0.063]
[1742341028390,41.88484513,125.4,125.38,0.063]
[1742341028589,20.42079244,125.39,125.38,0.063]
[1742341030366,13.48079244,125.39,125.38,20.063]
[1742341030891,13.48079244,125.4,125.38,20.20516157]
[1742341032773,6.94,125.42,125.39,7.9751]
[1742341032976,8.43538047,125.42,125.39,7.9751]
[1742341033190,8.43538047,125.42,125.38,8.0385]
[1742341034290,13.48079244,125.39,125.38,28.0385]
[1742341038294,1.55840221,125.43,125.38,28.18066157]
[1742341038474,7.003,125.43,125.38,28.18066157]
[1742341038678,13.48079244,125.4,125.38,48.11996157]
[1742341038986,13.48079244,125.39,125.38,48.11996157]
[1742341040407,13.48079244,125.41,125.39,0.14216157]
[1742341040795,13.48079244,125.42,125.39,0.28432314]
[1742341041778,13.54379244,125.43,125.42,0.14216157]
[1742341042106,0.063,125.43,125.42,20.14216157]
[1742341042410,0.063,125.43,125.42,28.11536157]
[1742341044894,13.54379244,125.43,125.42,28.11536157]
[1742341045204,0.063,125.43,125.42,28.11536157]
[1742341045696,13.48079244,125.45,125.42,54.50452314]
[1742341046100,13.48079244,125.44,125.42,54.50452314]
[1742341047781,13.48079244,125.45,125.42,54.50452314]
[1742341048815,13.48079244,125.46,125.43,0.14216157]
[1742341049180,13.54379244,125.47,125.43,0.14216157]
[1742341049378,0.063,125.47,125.46,20.14216157]
[1742341049583,13.54379244,125.47,125.46,20.0]
[1742341050476,13.54379244,125.47,125.43,0.28432314]
[1742341050477,13.54379244,125.47,125.45,20.0]
[1742341050676,0.063,125.47,125.46,7.9706]
[1742341050895,0.063,125.47,125.46,27.9706]
[1742341051902,13.54379244,125.47,125.46,27.9706]
[1742341052286,13.54379244,125.47,125.46,28.25492314]
[1742341052489,0.063,125.47,125.46,9.87202314]
[1742341053190,13.54379244,125.47,125.45,7.9711]
[1742341053523,0.063,125.47,125.44,7.9717]
[1742341053687,13.48079244,125.45,125.44,7.9717]
[1742341054795,13.48079244,125.45,125.43,8.11456157]
[1742341055008,13.48079244,125.44,125.43,8.11456157]
[1742341056314,13.48079244,125.44,125.43,7.9724]
[1742341056517,13.48079244,125.44,125.43,20.03]
[1742341058818,13.48079244,125.44,125.43,28.0025]
[1742341060127,13.48079244,125.44,125.43,0.03]
[1742341060918,13.48079244,125.44,125.43,28.0025]
[1742341061835,0.063,125.47,125.43,28.0025]
[1742341062008,13.48079244,125.44,125.43,28.0025]
[1742341064029,13.48079244,125.45,125.43,28.14466157]
[1742341064327,13.54379244,125.47,125.44,0.28432314]
[1742341064494,13.48079244,125.46,125.44,0.28432314]
[1742341064698,13.48079244,125.45,125.44,0.14216157]
[1742341065318,13.48079244,125.45,125.43,47.9339]
[1742341065615,13.48079244,125.44,125.43,48.07606157]
[1742341065809,13.48079244,125.44,125.43,28.14466157]
[1742341067435,13.48079244,125.45,125.43,28.14466157]
[1742341067921,13.48079244,125.46,125.43,48.07606157]
[1742341068127,13.48079244,125.46,125.44,0.14216157]
[1742341068703,13.48079244,125.45,125.44,0.14216157]
[1742341068898,13.48079244,125.46,125.44,0.14216157]
[1742341069112,13.48079244,125.46,125.44,0.28432314]
[1742341069733,13.48079244,125.46,125.45,8.11346157]
[1742341070834,13.48079244,125.46,125.45,7.9713]
[1742341071807,13.48079244,125.46,125.44,7.9719]
[1742341072008,0.063,125.47,125.44,7.9719]
[1742341072009,13.48079244,125.45,125.44,7.9719]
[1742341080728,13.48079244,125.45,125.44,8.11406157]
[1742341080930,13.54379244,125.45,125.44,8.11406157]
[1742341093634,0.063,125.47,125.46,20.14216157]
[1742341094724,12.78737114,125.47,125.46,28.11276157]
[1742341108651,7.114e-05,125.47,125.46,28.25492314]
[1742341108858,12.72437114,125.49,125.47,0.14216157]
[1742341109439,12.72437114,125.48,125.47,0.14216157]
[1742341110754,12.72437114,125.48,125.47,8.11216157]
[1742341114939,12.72437114,125.48,125.47,7.97]
[1742341115962,12.72437114,125.48,125.47,8.11216157]
[1742341116461,12.72437114,125.48,125.47,8.14216157]
[1742341117256,12.78737114,125.48,125.47,8.14216157]
[1742341118356,12.78737114,125.48,125.47,8.0]
[1742341120159,0.063,125.51,125.5,20.14216157]
[1742341120344,12.78737114,125.51,125.5,20.14216157]
[1742341120860,0.0001,125.51,125.5,20.28432314]
[1742341121059,0.0001,125.51,125.5,0.28432314]
[1742341121257,0.0001,125.51,125.5,1.47919064]
[1742341121964,0.0001,125.51,125.5,8.25242314]
[1742341122350,12.72447114,125.51,125.5,8.25242314]
[1742341125966,0.0001,125.51,125.5,8.25242314]
[1742341127367,12.72447114,125.51,125.5,8.25242314]
[1742341128089,0.0001,125.51,125.5,8.25242314]
[1742341129148,12.72447114,125.51,125.5,28.11026157]
[1742341129350,12.72447114,125.51,125.5,27.9681]
[1742341129682,12.72447114,125.51,125.5,27.9981]
[1742341131656,12.71415985,125.51,125.5,27.9981]
[1742341132059,12.71415985,125.51,125.5,20.03]
[1742341132651,12.71415985,125.51,125.5,0.03]
[1742341133966,12.71415985,125.51,125.47,0.03]
[1742341134158,12.71405985,125.48,125.47,0.03]
[1742341134963,12.72620706,125.48,125.47,0.03]
[1742341137878,12.72620706,125.48,125.47,20.17216157]
[1742341138063,81.6001,125.51,125.48,20.0]
[1742341138064,12.72620706,125.49,125.48,20.0]
[1742341139075,12.72620706,125.49,125.48,20.14216157]
[1742341139277,12.72630706,125.51,125.49,20.14216157]
[1742341139659,12.72630706,125.51,125.5,7.9681]
[1742341140186,0.063,125.53,125.5,8.25242314]
[1742341140381,12.72620706,125.52,125.51,0.14216157]
[1742341141587,12.72620706,125.52,125.5,27.8884]
[1742341141777,12.72620706,125.51,125.5,28.06056157]
[1742341143374,12.78920706,125.52,125.5,28.06056157]
[1742341144478,12.72620706,125.51,125.5,28.06056157]
[1742341145610,12.72620706,125.51,125.5,8.14026157]